fUST/lending_fUST_20251029
["ID","MTS","AMOUNT","RATE_DAILY","PERIOD"]
[392581504,1761685849579,-500.0,0.00024383,2]
[392581505,1761685849589,-500.0,0.00024383,2]
[392581506,1761685849602,-500.0,0.00024383,2]
[392581507,1761685849611,-1216.81,0.00024383,2]
[392581508,1761685849621,-500.0,0.00024383,2]
[392581509,1761685849632,-503.26,0.00024383,2]
[392581510,1761685849642,-500.0,0.00024383,2]
[392581511,1761685849652,-500.0,0.00024383,2]
[392581512,1761685849661,-500.0,0.00024383,2]
[392581513,1761685849671,-500.0,0.00024383,2]
[392581514,1761685849680,-500.0,0.00024383,2]
[392581515,1761685849689,-500.0,0.00024383,2]
[392581516,1761685849699,-500.0,0.00024383,2]
[392581517,1761685849708,-500.0,0.00024383,2]
[392581518,1761685849718,-500.0,0.00024383,2]
[392581519,1761685849727,-500.0,0.00024383,2]
[392581520,1761685849736,-500.0,0.00024383,2]
[392581521,1761685849746,-500.0,0.00024383,2]
[392581522,1761685849756,-500.0,0.00024383,2]
[392581523,1761685849769,-500.0,0.00024383,2]
[392581524,1761685849780,-500.0,0.00024383,2]
[392581525,1761685849791,-500.0,0.00024383,2]
[392581526,1761685849802,-500.0,0.00024383,2]
[392581527,1761685849812,-500.0,0.00024383,2]
[392581528,1761685849822,-1209.06,0.00024383,2]
[392581529,1761685849832,-500.0,0.00024383,2]
[392581530,1761685849842,-500.0,0.00024383,2]
[392581531,1761685849852,-500.0,0.00024383,2]
[392581532,1761685849861,-500.0,0.00024383,2]
[392581533,1761685849871,-6295.19,0.00024383,2]
[392581534,1761685849881,-500.0,0.00024383,2]
[392581535,1761685849891,-500.0,0.00024383,2]
[392581536,1761685849900,-500.0,0.00024383,2]
[392581537,1761685849910,-500.0,0.00024383,2]
[392581538,1761685849919,-500.0,0.00024383,2]
[392581539,1761685849929,-572.38,0.00024383,2]
[392581540,1761685849939,-732.61,0.00024383,2]
[392581541,1761685849949,-1185.57,0.00024383,2]
[392581542,1761685849958,-1858.13,0.00024383,2]
[392581543,1761685849968,-500.0,0.00024383,2]
[392581544,1761685849977,-500.0,0.00024383,2]
[392581545,1761685849986,-838.86,0.00024383,2]
[392581546,1761685849996,-500.0,0.00024383,2]
[392581547,1761685850006,-500.0,0.00024383,2]
[392581548,1761685850019,-500.0,0.00024383,2]
[392581549,1761685850029,-500.0,0.00024383,2]
[392581550,1761685850039,-525.49,0.00024383,2]
[392581551,1761685850048,-500.0,0.00024383,2]
[392581552,1761685850058,-747.47,0.00024383,2]
[392581553,1761685850068,-500.0,0.00024383,2]
[392581554,1761685850077,-500.0,0.00024383,2]
[392581555,1761685850087,-500.0,0.00024383,2]
[392581556,1761685850096,-500.0,0.00024383,2]
[392581557,1761685850109,-649.08701487,0.00024383,2]
[392581558,1761685850119,-500.0,0.00024383,2]
[392581559,1761685850128,-500.0,0.00024383,2]
[392581560,1761685850138,-500.0,0.00024383,2]
[392581561,1761685850148,-500.0,0.00024383,2]
[392581562,1761685850158,-500.0,0.00024383,2]
[392581563,1761685850167,-555.29,0.00024383,2]
[392581564,1761685850176,-692.42,0.00024383,2]
[392581565,1761685850186,-500.0,0.00024383,2]
[392581566,1761685850198,-843.66,0.00024383,2]
[392581567,1761685850208,-500.0,0.00024383,2]
[392581568,1761685850218,-500.0,0.00024383,2]
[392581569,1761685850227,-500.0,0.00024383,2]
[392581570,1761685850237,-1015.85,0.00024383,2]
[392581571,1761685850247,-500.0,0.00024383,2]
[392581572,1761685850257,-500.0,0.00024383,2]
[392581573,1761685850268,-500.0,0.00024383,2]
[392581574,1761685850278,-500.0,0.00024383,2]
[392581575,1761685850287,-644.8,0.00024383,2]
[392581576,1761685850297,-500.0,0.00024383,2]
[392581577,1761685850307,-500.0,0.00024383,2]
[392581578,1761685850316,-500.0,0.00024383,2]
[392581579,1761685850325,-500.0,0.00024383,2]
[392581580,1761685850334,-502.3,0.00024383,2]
[392581581,1761685850343,-699.92,0.00024383,2]
[392581582,1761685850353,-662.12,0.00024383,2]
[392581583,1761685850362,-500.0,0.00024383,2]
[392581584,1761685850371,-500.0,0.00024383,2]
[392581585,1761685850380,-754.62,0.00024383,2]
[392581586,1761685850389,-263.97562682,0.00024383,2]
[392581587,1761685850399,-583.15297114,0.00024383,2]
[392581588,1761685850408,-500.0,0.00024383,2]
[392581589,1761685850418,-500.0,0.00024383,2]
[392581590,1761685850428,-500.0,0.00024383,2]
[392581591,1761685850437,-500.0,0.00024383,2]
[392581592,1761685850446,-241.5,0.000246,3]
[392581593,1761685850456,-200.0,0.00024657,2]
[392581594,1761685850465,-500.0,0.00024657,2]
[392581595,1761685850474,-500.0,0.00024657,2]
[392581596,1761685850484,-500.0,0.00024657,2]
[392581597,1761685850493,-1216.81,0.00024657,2]
[392581598,1761685850504,-500.0,0.00024657,2]
[392581599,1761685850515,-503.26,0.00024657,2]
[392581600,1761685850525,-500.0,0.00024657,2]
[392581601,1761685850534,-500.0,0.00024657,2]
[392581602,1761685850544,-500.0,0.00024657,2]
[392581603,1761685850553,-500.0,0.00024657,2]
[392581604,1761685850563,-500.0,0.00024657,2]
[392581605,1761685850573,-500.0,0.00024657,2]
[392581606,1761685850582,-500.0,0.00024657,2]
[392581607,1761685850592,-519.20034644,0.00024657,2]
[392581608,1761685850602,-500.0,0.00024657,2]
[392581609,1761685850611,-500.0,0.00024657,2]
[392581610,1761685850620,-500.0,0.00024657,2]
[392581611,1761685850630,-500.0,0.00024657,2]
[392581612,1761685850639,-500.0,0.00024657,2]
[392581613,1761685850649,-500.0,0.00024657,2]
[392581614,1761685850660,-500.0,0.00024657,2]
[392581615,1761685850670,-500.0,0.00024657,2]
[392581616,1761685850679,-500.0,0.00024657,2]
[392581617,1761685850688,-500.0,0.00024657,2]
[392581618,1761685850698,-1209.06,0.00024657,2]
[392581619,1761685850707,-500.0,0.00024657,2]
[392581620,1761685850717,-500.0,0.00024657,2]
[392581621,1761685850727,-500.0,0.00024657,2]
[392581622,1761685850737,-500.0,0.00024657,2]
[392581623,1761685850746,-6295.19,0.00024657,2]
[392581624,1761685850755,-500.0,0.00024657,2]
[392581625,1761685850768,-500.0,0.00024657,2]
[392581626,1761685850777,-500.0,0.00024657,2]
[392581627,1761685850788,-331.73918472,0.00024657,2]
[392581628,1761685850797,-500.0,0.00024657,2]
[392581629,1761685850807,-572.38,0.00024657,2]
[392581630,1761685850817,-732.61,0.00024657,2]
[392581631,1761685850827,-1185.57,0.00024657,2]
[392581632,1761685850836,-1858.13,0.00024657,2]
[392581633,1761685850846,-500.0,0.00024657,2]
[392581634,1761685850856,-500.0,0.00024657,2]
[392581635,1761685850866,-838.86,0.00024657,2]
[392581636,1761685850875,-500.0,0.00024657,2]
[392581637,1761685850884,-500.0,0.00024657,2]
[392581638,1761685850894,-500.0,0.00024657,2]
[392581639,1761685850904,-500.0,0.00024657,2]
[392581640,1761685850913,-525.49,0.00024657,2]
[392581641,1761685850922,-500.0,0.00024657,2]
[392581642,1761685850931,-747.47,0.00024657,2]
[392581643,1761685850941,-500.0,0.00024657,2]
[392581644,1761685850950,-500.0,0.00024657,2]
[392581645,1761685850960,-500.0,0.00024657,2]
[392581646,1761685850970,-500.0,0.00024657,2]
[392581647,1761685850980,-500.0,0.00024657,2]
[392581648,1761685850991,-500.0,0.00024657,2]
[392581649,1761685851000,-500.0,0.00024657,2]
[392581650,1761685851011,-500.0,0.00024657,2]
[392581651,1761685851021,-500.0,0.00024657,2]
[392581652,1761685851031,-555.29,0.00024657,2]
[392581653,1761685851041,-500.0,0.00024657,2]
[392581654,1761685851051,-692.42,0.00024657,2]
[392581655,1761685851061,-843.66,0.00024657,2]
[392581656,1761685851070,-500.0,0.00024657,2]
[392581657,1761685851080,-500.0,0.00024657,2]
[392581658,1761685851090,-447.39015652,0.00024657,2]
[392581659,1761685851100,-1015.85,0.00024657,2]
[392581660,1761685851113,-500.0,0.00024657,2]
[392581661,1761685851123,-500.0,0.00024657,2]
[392581662,1761685851132,-500.0,0.00024657,2]
[392581663,1761685851142,-500.0,0.00024657,2]
[392581664,1761685851151,-644.8,0.00024657,2]
[392581665,1761685851161,-500.0,0.00024657,2]
[392581666,1761685851171,-500.0,0.00024657,2]
[392581667,1761685851181,-500.0,0.00024657,2]
[392581668,1761685851190,-500.0,0.00024657,2]
[392581669,1761685851200,-502.3,0.00024657,2]
[392581670,1761685851210,-699.92,0.00024657,2]
[392581671,1761685851219,-662.12,0.00024657,2]
[392581672,1761685851230,-500.0,0.00024657,2]
[392581673,1761685851239,-500.0,0.00024657,2]
[392581674,1761685851249,-754.62,0.00024657,2]
[392581675,1761685851262,-500.0,0.00024657,2]
[392581676,1761685851272,-500.0,0.00024657,2]
[392581677,1761685851282,-184.74531577,0.00024657,2]
[392581678,1761685851292,-500.0,0.00024657,2]
[392581679,1761685851301,-757.0,0.00024658,2]
[392581680,1761685851311,-2500.0,0.00024664,2]
[392581681,1761685851321,-1335.30623567,0.00024664,2]
[392581682,1761685851330,-500.0,0.00024673,2]
[392581683,1761685851340,-500.0,0.00024673,2]
[392581684,1761685851349,-1000.0,0.00024712,2]
[392581685,1761685851359,-757.0,0.00024713,2]
[392581686,1761685851369,-600.0,0.00024716,2]
[392581687,1761685851378,-2000.0,0.00024716,2]
[392581688,1761685851387,-757.0,0.00024768,2]
[392581689,1761685851398,-587.0,0.00024774,2]
[392581690,1761685851407,-28134.69386222,0.000248,2]
[392581691,1761685851425,-1810.85902893,0.000248,2]
[392581692,1761685851436,-1629.02202182,0.000248,2]
[392581693,1761685851448,-9699.00433043,0.000248,2]
[392581694,1761685851458,-171.79187941,0.00024812,2]
[392581695,1761685851468,-560.0,0.00024816,2]
[392581696,1761685851478,-757.0,0.00024822,2]
[392581697,1761685851489,-6225.11379963,0.00024831,2]
[392581698,1761685851498,-500.0,0.00024875,2]
[392581699,1761685851510,-757.0,0.00024877,2]
[392581700,1761685851522,-500.0,0.00024899,2]
[392581701,1761685851532,-151.0,0.000249,7]
[392581702,1761685851542,-151.0,0.000249,7]
[392581703,1761685851552,-151.0,0.000249,7]
[392581704,1761685851562,-151.0,0.000249,7]
[392581705,1761685851571,-2863.99155053,0.000249,2]
[392581706,1761685851770,-500.0,0.00024383,2]
[392581707,1761685851780,-500.0,0.00024657,2]
[392581708,1761685851790,-152.0,0.00024803,7]
[392581709,1761685851801,-560648.0,0.000249,2]
[392581710,1761685851817,-627.31452087,0.000249,2]
[392581711,1761685852184,-22011.97872572,0.000249,2]
[392581712,1761685852409,-7643.81399335,0.00022455,10]
[392581713,1761685852474,-820.62939,0.00022455,10]
[392581714,1761685852485,-13214.45661665,0.00022455,10]
[392581715,1761685852495,-26790.20736347,0.000249,2]
[392581716,1761685852507,-32632.47665441,0.000249,2]
[392581717,1761685852523,-18330.9442356,0.000249,2]
[392581718,1761685852537,-17698.49392,0.000249,2]
[392581719,1761685852548,-1086.2508044,0.000249,2]
[392581720,1761685852558,-151.0,0.000249,7]
[392581721,1761685852568,-151.0,0.000249,7]
[392581722,1761685852578,-151.0,0.000249,7]
[392581723,1761685852587,-151.0,0.000249,7]
[392581724,1761685852597,-151.0,0.000249,7]
[392581725,1761685852606,-151.0,0.000249,7]
[392581726,1761685852616,-151.0,0.000249,7]
[392581727,1761685852625,-151.0,0.000249,7]
[392581728,1761685852635,-151.0,0.000249,7]
[392581729,1761685852645,-151.0,0.000249,7]
[392581730,1761685852655,-151.0,0.000249,7]
[392581731,1761685852664,-151.0,0.000249,7]
[392581732,1761685852674,-1001.438825,0.000249,7]
[392581733,1761685852683,-1001.438825,0.000249,7]
[392581734,1761685852693,-1001.438825,0.000249,7]
[392581735,1761685852703,-1001.438825,0.000249,7]
[392581736,1761685852713,-200.0,0.00024931,2]
[392581737,1761685852722,-500.0,0.00024931,2]
[392581738,1761685852731,-186.831519,0.00024931,7]
[392581739,1761685852741,-153.463196,0.00024931,7]
[392581740,1761685852750,-500.0,0.00024931,2]
[392581741,1761685852762,-500.0,0.00024931,2]
[392581742,1761685852772,-500.0,0.00024931,2]
[392581743,1761685852782,-503.26,0.00024931,2]
[392581744,1761685852792,-500.0,0.00024931,2]
[392581745,1761685852801,-212.09304809,0.00024931,2]
[392581746,1761685852811,-500.0,0.00024931,2]
[392581747,1761685852820,-525.07297088,0.00024931,2]
[392581748,1761685852830,-261.259676,0.00024931,2]
[392581749,1761685852840,-500.0,0.00024931,2]
[392581750,1761685852849,-500.0,0.00024931,2]
[392581751,1761685852859,-500.0,0.00024931,2]
[392581752,1761685852868,-500.0,0.00024931,2]
[392581753,1761685852878,-500.0,0.00024931,2]
[392581754,1761685852887,-500.0,0.00024931,2]
[392581755,1761685852896,-500.0,0.00024931,2]
[392581756,1761685852906,-500.0,0.00024931,2]
[392581757,1761685852915,-500.0,0.00024931,2]
[392581758,1761685852925,-500.0,0.00024931,2]
[392581759,1761685852934,-500.0,0.00024931,2]
[392581760,1761685852943,-151.456638,0.00024931,7]
[392581761,1761685852953,-151.0,0.00024931,7]
[392581762,1761685852962,-500.0,0.00024931,2]
[392581763,1761685852971,-151.0,0.00024931,7]
[392581764,1761685852980,-1209.06,0.00024931,2]
[392581765,1761685852990,-500.0,0.00024931,2]
[392581766,1761685853000,-151.0,0.00024931,7]
[392581767,1761685853009,-500.0,0.00024931,2]
[392581768,1761685853020,-151.0,0.00024931,7]
[392581769,1761685853030,-500.0,0.00024931,2]
[392581770,1761685853039,-151.0,0.00024931,7]
[392581771,1761685853049,-500.0,0.00024931,2]
[392581772,1761685853058,-151.0,0.00024931,7]
[392581773,1761685853068,-151.0,0.00024931,7]
[392581774,1761685853078,-500.0,0.00024931,2]
[392581775,1761685853091,-500.0,0.00024931,2]
[392581776,1761685853100,-500.0,0.00024931,2]
[392581777,1761685853110,-500.0,0.00024931,2]
[392581778,1761685853123,-572.38,0.00024931,2]
[392581779,1761685853132,-151.0,0.00024931,7]
[392581780,1761685853142,-151.0,0.00024931,7]
[392581781,1761685853152,-1858.13,0.00024931,2]
[392581782,1761685853162,-500.0,0.00024931,2]
[392581783,1761685853172,-500.0,0.00024931,2]
[392581784,1761685853182,-151.0,0.00024931,7]
[392581785,1761685853192,-222.142952,0.00024931,7]
[392581786,1761685853202,-838.86,0.00024931,2]
[392581787,1761685853211,-500.0,0.00024931,2]
[392581788,1761685853221,-151.0,0.00024931,7]
[392581789,1761685853230,-643.98686232,0.00024931,2]
[392581790,1761685853239,-500.0,0.00024931,2]
[392581791,1761685853248,-151.0,0.00024931,7]
[392581792,1761685853258,-500.0,0.00024931,2]
[392581793,1761685853270,-525.49,0.00024931,2]
[392581794,1761685853280,-500.0,0.00024931,2]
[392581795,1761685853290,-747.47,0.00024931,2]
[392581796,1761685853300,-500.0,0.00024931,2]
[392581797,1761685853310,-232.57194917,0.00024931,2]
[392581798,1761685853320,-500.0,0.00024931,2]
[392581799,1761685853330,-500.0,0.00024931,2]
[392581800,1761685853339,-500.0,0.00024931,2]
[392581801,1761685853349,-500.0,0.00024931,2]
[392581802,1761685853364,-500.0,0.00024931,2]
[392581803,1761685853373,-500.0,0.00024931,2]
[392581804,1761685853383,-500.0,0.00024931,2]
[392581805,1761685853393,-555.29,0.00024931,2]
[392581806,1761685853403,-500.0,0.00024931,2]
[392581807,1761685853414,-692.42,0.00024931,2]
[392581808,1761685853424,-843.66,0.00024931,2]
[392581809,1761685853433,-500.0,0.00024931,2]
[392581810,1761685853443,-500.0,0.00024931,2]
[392581811,1761685853453,-1015.85,0.00024931,2]
[392581812,1761685853463,-500.0,0.00024931,2]
[392581813,1761685853472,-500.0,0.00024931,2]
[392581814,1761685853482,-500.0,0.00024931,2]
[392581815,1761685853492,-500.0,0.00024931,2]
[392581816,1761685853501,-644.8,0.00024931,2]
[392581817,1761685853517,-500.0,0.00024931,2]
[392581818,1761685853526,-500.0,0.00024931,2]
[392581819,1761685853536,-500.0,0.00024931,2]
[392581820,1761685853545,-500.0,0.00024931,2]
[392581821,1761685853555,-502.3,0.00024931,2]
[392581822,1761685853564,-699.92,0.00024931,2]
[392581823,1761685853574,-662.12,0.00024931,2]
[392581824,1761685853584,-500.0,0.00024931,2]
[392581825,1761685853594,-500.0,0.00024931,2]
[392581826,1761685853603,-754.62,0.00024931,2]
[392581827,1761685853613,-500.0,0.00024931,2]
[392581828,1761685853623,-500.0,0.00024931,2]
[392581829,1761685853633,-500.0,0.00024931,2]
[392581830,1761685853643,-500.0,0.00024931,2]
[392581831,1761685853655,-757.0,0.00024932,2]
[392581832,1761685853665,-151.0,0.00024948,7]
[392581833,1761685853676,-151.0,0.00024948,7]
[392581834,1761685853686,-151.0,0.00024948,7]
[392581835,1761685853696,-151.0,0.00024948,7]
[392581836,1761685853706,-152.370941,0.00024948,7]
[392581837,1761685853716,-151.0,0.00024957,7]
[392581838,1761685853726,-151.0,0.00024957,7]
[392581839,1761685853735,-151.0,0.00024957,7]
[392581840,1761685853745,-151.0,0.00024957,7]
[392581841,1761685853756,-151.0,0.00024957,7]
[392581842,1761685853766,-151.0,0.00024957,7]
[392581843,1761685853777,-151.0,0.00024957,7]
[392581844,1761685853787,-151.0,0.00024957,7]
[392581845,1761685853797,-150.0,0.00024973,2]
[392581846,1761685853807,-757.0,0.00024987,2]
[392581847,1761685853816,-500.0,0.00024991,2]
[392581848,1761685853828,-220.0658183,0.00024991,2]
[392581849,1761685853844,-6379.7744057,0.00024991,2]
[392581850,1761685853854,-98959.37765277,0.00025,2]
[392581851,1761685853865,-1170.34679333,0.00025,2]
[392581852,1761685853875,-1500.0,0.00025,10]
[392581853,1761685853884,-131505.99861102,0.00025,15]
[392581854,1761685853894,-198.8,0.00025,2]
[392581855,1761685853907,-665.96993019,0.00025,2]
[392581856,1761685853918,-1077.35613878,0.00025,2]
[392581857,1761685853928,-2654.69508364,0.00025,2]
[392581858,1761685853939,-40000.0,0.00025,3]
[392581859,1761685853948,-11128.09352149,0.00025,3]
[392581860,1761685853958,-5088.0,0.00025,10]
[392581861,1761685853967,-21047.91233149,0.00025,2]
[392581862,1761685853977,-1414.55,0.00025,2]
[392581863,1761685853988,-3000.0,0.00025,30]
[392581864,1761685853998,-193.52281446,0.00025,2]
[392581865,1761685854007,-7817.12530797,0.00025,10]
[392581866,1761685854019,-2380.0,0.00025,10]
[392581867,1761685854029,-151.0,0.00025,7]
[392581868,1761685854038,-151.0,0.00025,7]
[392581869,1761685854048,-151.0,0.00025,7]
[392581870,1761685854058,-151.0,0.00025,7]
[392581871,1761685854068,-1000.0,0.00025,5]
[392581872,1761685854079,-276.542264,0.00025,7]
[392581873,1761685854091,-151.0,0.00025,7]
[392581874,1761685854100,-151.0,0.00025,7]
[392581875,1761685854111,-151.0,0.00025,7]
[392581876,1761685854123,-151.0,0.00025,7]
[392581877,1761685854133,-151.0,0.00025,7]
[392581878,1761685854143,-151.0,0.00025,7]
[392581879,1761685854154,-151.0,0.00025,7]
[392581880,1761685854164,-158.489527,0.00025017,2]
[392581881,1761685854174,-757.0,0.00025042,2]
[392581882,1761685854184,-500.0,0.00025051,7]
[392581883,1761685854196,-500.0,0.00025059,7]
[392581884,1761685854206,-367.86837473,0.00025064,39]
[392581885,1761685854216,-392.39293304,0.00025069,40]
[392581886,1761685854227,-500.0,0.00025075,7]
[392581887,1761685854237,-500.0,0.00025082,7]
[392581888,1761685854247,-500.0,0.00025087,7]
[392581889,1761685854257,-757.0,0.00025096,2]
[392581890,1761685854306,-367.86837473,0.00025135,42]
[392581891,1761685854316,-317.4447065,0.00025139,48]
[392581892,1761685854325,-757.0,0.00025151,2]
[392581893,1761685854334,-500.0,0.00025205,2]
[392581894,1761685854342,-959.62,0.00025205,2]
[392581895,1761685854351,-720.0,0.00025205,20]
[392581896,1761685854359,-200.0,0.00025205,2]
[392581897,1761685854368,-500.0,0.00025205,2]
[392581898,1761685854377,-160.09609608,0.00025205,2]
[392581899,1761685854386,-500.0,0.00025205,2]
[392581900,1761685854394,-500.0,0.00025205,2]
[392581901,1761685854404,-503.26,0.00025205,2]
[392581902,1761685854412,-500.0,0.00025205,2]
[392581903,1761685854421,-500.0,0.00025205,2]
[392581904,1761685854431,-500.0,0.00025205,2]
[392581905,1761685854440,-500.0,0.00025205,2]
[392581906,1761685854449,-500.0,0.00025205,2]
[392581907,1761685854458,-500.0,0.00025205,2]
[392581908,1761685854466,-500.0,0.00025205,2]
[392581909,1761685854475,-500.0,0.00025205,2]
[392581910,1761685854484,-500.0,0.00025205,2]
[392581911,1761685854493,-500.0,0.00025205,2]
[392581912,1761685854501,-180.62496895,0.00025205,2]
[392581913,1761685854513,-432.36998471,0.00025205,2]
[392581914,1761685854522,-500.0,0.00025205,2]
[392581915,1761685854531,-500.0,0.00025205,2]
[392581916,1761685854542,-1209.06,0.00025205,2]
[392581917,1761685854552,-485.64380248,0.00025205,2]
[392581918,1761685854561,-500.0,0.00025205,2]
[392581919,1761685854570,-500.0,0.00025205,2]
[392581920,1761685854580,-500.0,0.00025205,2]
[392581921,1761685854589,-500.0,0.00025205,2]
[392581922,1761685854598,-500.0,0.00025205,2]
[392581923,1761685854608,-500.0,0.00025205,2]
[392581924,1761685854617,-500.0,0.00025205,2]
[392581925,1761685854626,-572.38,0.00025205,2]
[392581926,1761685854636,-1858.13,0.00025205,2]
[392581927,1761685854647,-500.0,0.00025205,2]
[392581928,1761685854656,-500.0,0.00025205,2]
[392581929,1761685854666,-838.86,0.00025205,2]
[392581930,1761685854675,-500.0,0.00025205,2]
[392581931,1761685854684,-500.0,0.00025205,2]
[392581932,1761685854694,-500.0,0.00025205,2]
[392581933,1761685854703,-525.49,0.00025205,2]
[392581934,1761685854712,-500.0,0.00025205,2]
[392581935,1761685854722,-747.47,0.00025205,2]
[392581936,1761685854731,-500.0,0.00025205,2]
[392581937,1761685854740,-500.0,0.00025205,2]
[392581938,1761685854750,-500.0,0.00025205,2]
[392581939,1761685854759,-500.0,0.00025205,2]
[392581940,1761685854769,-500.0,0.00025205,2]
[392581941,1761685854779,-500.0,0.00025205,2]
[392581942,1761685854788,-500.0,0.00025205,2]
[392581943,1761685854797,-500.0,0.00025205,2]
[392581944,1761685854807,-555.29,0.00025205,2]
[392581945,1761685854817,-273.21300073,0.00025205,2]
[392581946,1761685854827,-692.42,0.00025205,2]
[392581947,1761685854837,-843.66,0.00025205,2]
[392581948,1761685854847,-500.0,0.00025205,2]
[392581949,1761685854858,-500.0,0.00025205,2]
[392581950,1761685854868,-1015.85,0.00025205,2]
[392581951,1761685854879,-500.0,0.00025205,2]
[392581952,1761685854888,-500.0,0.00025205,2]
[392581953,1761685854898,-500.0,0.00025205,2]
[392581954,1761685854908,-500.0,0.00025205,2]
[392581955,1761685854921,-644.8,0.00025205,2]
[392581956,1761685854934,-500.0,0.00025205,2]
[392581957,1761685854943,-500.0,0.00025205,2]
[392581958,1761685854953,-500.0,0.00025205,2]
[392581959,1761685854962,-321.53675585,0.00025205,2]
[392581960,1761685854972,-502.3,0.00025205,2]
[392581961,1761685854981,-699.92,0.00025205,2]
[392581962,1761685854991,-662.12,0.00025205,2]
[392581963,1761685855001,-500.0,0.00025205,2]
[392581964,1761685855012,-500.0,0.00025205,2]
[392581965,1761685855023,-754.62,0.00025205,2]
[392581966,1761685855032,-500.0,0.00025205,2]
[392581967,1761685855042,-500.0,0.00025205,2]
[392581968,1761685855051,-500.0,0.00025205,2]
[392581969,1761685855060,-500.0,0.00025205,2]
[392581970,1761685855070,-367.86837473,0.00025206,46]
[392581971,1761685855079,-757.0,0.00025206,2]
[392581972,1761685855088,-3000.0,0.00025212,2]
[392581973,1761685855096,-392.39293304,0.00025215,48]
[392581974,1761685855105,-500.0,0.00025228,7]
[392581975,1761685855114,-757.0,0.00025261,2]
[392581976,1761685855127,-750.0,0.00025264,2]
[392581977,1761685855136,-2500.0,0.00025264,2]
[392581978,1761685855145,-367.86837473,0.00025277,50]
[392581979,1761685855154,-500.0,0.00025281,2]
[392581980,1761685855163,-317.4447065,0.00025285,56]
[392581981,1761685855172,-500.0,0.00025315,7]
[392581982,1761685855182,-757.0,0.00025316,2]
[392581983,1761685855191,-392.39293304,0.00025362,56]
[392581984,1761685855200,-660.0,0.00025364,2]
[392581985,1761685855210,-757.0,0.0002537,2]
[392581986,1761685855219,-500.0,0.000254,7]
[392581987,1761685855228,-380.16675333,0.00025408,2]
[392581988,1761685855240,-757.0,0.00025425,2]
[392581989,1761685855249,-317.4447065,0.00025431,63]
[392581990,1761685855259,-500.0,0.00025479,2]
[392581991,1761685855270,-959.62,0.00025479,2]
[392581992,1761685855279,-200.0,0.00025479,2]
[392581993,1761685855288,-500.0,0.00025479,2]
[392581994,1761685855298,-500.0,0.00025479,2]
[392581995,1761685855307,-500.0,0.00025479,2]
[392581996,1761685855316,-503.26,0.00025479,2]
[392581997,1761685855325,-500.0,0.00025479,2]
[392581998,1761685855335,-450.64600231,0.00025479,2]
[392581999,1761685855343,-465.28850017,0.00025479,2]
[392582000,1761685855352,-500.0,0.00025479,2]
[392582001,1761685855363,-518.73387908,0.00025479,2]
[392582002,1761685855373,-190.42543937,0.00025479,2]
[392582003,1761685855382,-500.0,0.00025479,2]